[Event "Titled Tuesday Blitz June 13 Late 2023"]
[White "Aung Thant Zin"]
[Black "Henriquez Villagra, Cristobal"]
[WhiteFideId "13000063"]
[BlackFideId "3409350"]
[WhiteElo "2278"]
[BlackElo "2542"]
[Result "0-1"]
[Round "2"]
[TimeControl "180+2"]
[Date "2023.06.13"]
[WhiteClock "0:00:12"]
[BlackClock "0:00:48"]
[Board "111"]

1. e4 {[%clk 0:03:00]}  d6 {[%clk 0:03:00]} 2. d4 {[%clk 0:02:59]}  Nf6 {[%clk 0:03:00]} 3. Nc3 {[%clk 0:02:59]}  e5 {[%clk 0:02:59]} 4. Nf3 {[%clk 0:02:58]}  Nbd7 {[%clk 0:02:59]} 5. Bc4 {[%clk 0:02:57]}  Be7 {[%clk 0:02:59]} 6. O-O {[%clk 0:02:57]}  O-O {[%clk 0:03:00]} 7. Bb3 {[%clk 0:02:55]}  h6 {[%clk 0:02:57]} 8. h3 {[%clk 0:02:54]}  Re8 {[%clk 0:02:57]} 9. Re1 {[%clk 0:02:54]}  Bf8 {[%clk 0:02:57]} 10. a4 {[%clk 0:02:41]}  exd4 {[%clk 0:02:57]} 11. Nxd4 {[%clk 0:02:40]}  Nc5 {[%clk 0:02:57]} 12. f3 {[%clk 0:02:30]}  Nxb3 {[%clk 0:02:49]} 13. Nxb3 {[%clk 0:02:29]}  b6 {[%clk 0:02:43]} 14. a5 {[%clk 0:02:25]}  Bb7 {[%clk 0:02:42]} 15. Nd4 {[%clk 0:02:22]}  bxa5 {[%clk 0:02:38]} 16. Bd2 {[%clk 0:01:57]}  d5 {[%clk 0:02:31]} 17. e5 {[%clk 0:01:56]}  Nd7 {[%clk 0:02:30]} 18. f4 {[%clk 0:01:56]}  Nc5 {[%clk 0:02:29]} 19. Be3 {[%clk 0:01:45]}  Ne6 {[%clk 0:02:19]} 20. Nxe6 {[%clk 0:01:28]}  fxe6 {[%clk 0:02:20]} 21. Na4 {[%clk 0:01:22]}  Bc6 {[%clk 0:01:47]} 22. Nc5 {[%clk 0:01:21]}  Rb8 {[%clk 0:01:47]} 23. b3 {[%clk 0:01:20]}  Rb4 {[%clk 0:01:46]} 24. Bd4 {[%clk 0:01:07]}  Bxc5 {[%clk 0:01:45]} 25. Bxc5 {[%clk 0:01:07]}  Rxf4 {[%clk 0:01:45]} 26. Rxa5 {[%clk 0:01:03]}  d4 {[%clk 0:01:44]} 27. Rf1 {[%clk 0:00:58]}  Qd5 {[%clk 0:01:43]} 28. Qe2 {[%clk 0:00:58]}  Rxf1+ {[%clk 0:01:20]} 29. Qxf1 {[%clk 0:00:55]}  Qxe5 {[%clk 0:01:17]} 30. b4 {[%clk 0:00:47]}  Bd5 {[%clk 0:01:16]} 31. Qf2 {[%clk 0:00:39]}  Qe4 {[%clk 0:01:13]} 32. Rxa7 {[%clk 0:00:35]}  e5 {[%clk 0:01:01]} 33. Rxc7 {[%clk 0:00:34]}  Qg6 {[%clk 0:01:01]} 34. Kh2 {[%clk 0:00:31]}  Kh7 {[%clk 0:00:57]} 35. Qg3 {[%clk 0:00:30]}  Qxg3+ {[%clk 0:00:51]} 36. Kxg3 {[%clk 0:00:29]}  Re6 {[%clk 0:00:52]} 37. b5 {[%clk 0:00:26]}  Rg6+ {[%clk 0:00:52]} 38. Kh4 {[%clk 0:00:20]}  Rxg2 {[%clk 0:00:52]} 39. b6 {[%clk 0:00:19]}  Rxc2 {[%clk 0:00:50]} 40. b7 {[%clk 0:00:12]}  Bxb7 {[%clk 0:00:48]} 0-1


[Site "https://www.chess.com"]

[Event "Titled Tuesday Blitz June 13 Late 2023"]
[White "Babazada, Khazar"]
[Black "Bouget, Alexandre"]
[WhiteFideId "13413554"]
[BlackFideId "681318"]
[WhiteElo "2369"]
[BlackElo "2189"]
[Result "1-0"]
[Round "2"]
[TimeControl "180+2"]
[Date "2023.06.13"]
[WhiteClock "0:00:27"]
[BlackClock "0:00:00"]
[Board "112"]

1. Nf3 {[%clk 0:03:00]}  d5 {[%clk 0:02:48]} 2. d4 {[%clk 0:03:00]}  Nc6 {[%clk 0:02:48]} 3. Bf4 {[%clk 0:03:00]}  Bg4 {[%clk 0:02:46]} 4. e3 {[%clk 0:03:01]}  e6 {[%clk 0:02:46]} 5. Nbd2 {[%clk 0:03:01]}  Bd6 {[%clk 0:02:45]} 6. Bg3 {[%clk 0:03:01]}  Nge7 {[%clk 0:02:42]} 7. Bd3 {[%clk 0:03:01]}  Nf5 {[%clk 0:02:41]} 8. c3 {[%clk 0:03:01]}  h5 {[%clk 0:02:40]} 9. Bxd6 {[%clk 0:03:00]}  Nxd6 {[%clk 0:02:38]} 10. Qe2 {[%clk 0:02:59]}  a5 {[%clk 0:02:21]} 11. h3 {[%clk 0:02:56]}  Bf5 {[%clk 0:02:20]} 12. a4 {[%clk 0:02:57]}  Ne4 {[%clk 0:02:14]} 13. Nf1 {[%clk 0:02:37]}  g5 {[%clk 0:02:12]} 14. N3d2 {[%clk 0:02:37]}  Qf6 {[%clk 0:02:03]} 15. Bxe4 {[%clk 0:02:33]}  dxe4 {[%clk 0:01:55]} 16. Ng3 {[%clk 0:02:33]}  Qg6 {[%clk 0:01:51]} 17. f3 {[%clk 0:02:12]}  exf3 {[%clk 0:01:46]} 18. Qxf3 {[%clk 0:02:12]}  h4 {[%clk 0:01:29]} 19. Nxf5 {[%clk 0:02:08]}  Qxf5 {[%clk 0:01:29]} 20. Qxf5 {[%clk 0:02:08]}  exf5 {[%clk 0:01:30]} 21. O-O {[%clk 0:02:04]}  Ne7 {[%clk 0:01:30]} 22. e4 {[%clk 0:02:01]}  f4 {[%clk 0:01:24]} 23. e5 {[%clk 0:02:01]}  Nf5 {[%clk 0:01:18]} 24. Ne4 {[%clk 0:01:57]}  Ng3 {[%clk 0:01:10]} 25. Nf6+ {[%clk 0:01:54]}  Ke7 {[%clk 0:01:05]} 26. Rfe1 {[%clk 0:01:54]}  Rad8 {[%clk 0:01:00]} 27. d5 {[%clk 0:01:53]}  Nh5 {[%clk 0:00:51]} 28. Nxh5 {[%clk 0:01:48]}  Rxh5 {[%clk 0:00:52]} 29. Rad1 {[%clk 0:01:48]}  c6 {[%clk 0:00:48]} 30. c4 {[%clk 0:01:48]}  Rh6 {[%clk 0:00:43]} 31. Rd3 {[%clk 0:01:10]}  cxd5 {[%clk 0:00:43]} 32. cxd5 {[%clk 0:01:11]}  Rb6 {[%clk 0:00:42]} 33. b3 {[%clk 0:01:12]}  f6 {[%clk 0:00:33]} 34. d6+ {[%clk 0:01:09]}  Ke6 {[%clk 0:00:32]} 35. exf6+ {[%clk 0:00:42]}  Kxf6 {[%clk 0:00:33]} 36. d7 {[%clk 0:00:43]}  Re6 {[%clk 0:00:32]} 37. Red1 {[%clk 0:00:41]}  Re2 {[%clk 0:00:25]} 38. Kf1 {[%clk 0:00:39]}  Re7 {[%clk 0:00:19]} 39. Kf2 {[%clk 0:00:38]}  Ke6 {[%clk 0:00:16]} 40. Kf3 {[%clk 0:00:37]}  Rexd7 {[%clk 0:00:15]} 41. Rxd7 {[%clk 0:00:38]}  Rxd7 {[%clk 0:00:15]} 42. Rxd7 {[%clk 0:00:38]}  Kxd7 {[%clk 0:00:15]} 43. Kg4 {[%clk 0:00:39]}  Kc6 {[%clk 0:00:06]} 44. Kxg5 {[%clk 0:00:36]}  Kc5 {[%clk 0:00:06]} 45. Kxh4 {[%clk 0:00:36]}  Kb4 {[%clk 0:00:05]} 46. Kg4 {[%clk 0:00:37]}  Kxb3 {[%clk 0:00:05]} 47. h4 {[%clk 0:00:37]}  b5 {[%clk 0:00:04]} 48. h5 {[%clk 0:00:25]}  bxa4 {[%clk 0:00:03]} 49. h6 {[%clk 0:00:26]}  a3 {[%clk 0:00:04]} 50. h7 {[%clk 0:00:26]}  a2 {[%clk 0:00:04]} 51. h8=Q {[%clk 0:00:27]}  Kc2 {[%clk 0:00:00]} 52. Qa1 {[%clk 0:00:27]} 1-0


[Site "https://www.chess.com"]

[Event "Titled Tuesday Blitz June 13 Late 2023"]
[White "Siddharth, Jagadeesh"]
[Black "Womacka, Mathias"]
[WhiteFideId "5818320"]
[BlackFideId "4611390"]
[WhiteElo "2303"]
[BlackElo "2377"]
[Result "1/2-1/2"]
[Round "2"]
[TimeControl "180+2"]
[Date "2023.06.13"]
[WhiteClock "0:00:19"]
[BlackClock "0:00:12"]
[Board "114"]

1. e4 {[%clk 0:03:00]}  c5 {[%clk 0:02:59]} 2. Nf3 {[%clk 0:03:00]}  d6 {[%clk 0:02:58]} 3. Bb5+ {[%clk 0:03:00]}  Nd7 {[%clk 0:02:57]} 4. a4 {[%clk 0:03:00]}  Nf6 {[%clk 0:02:56]} 5. Nc3 {[%clk 0:03:00]}  a6 {[%clk 0:02:50]} 6. Be2 {[%clk 0:03:00]}  g6 {[%clk 0:02:48]} 7. a5 {[%clk 0:02:59]}  Bg7 {[%clk 0:02:47]} 8. O-O {[%clk 0:03:00]}  O-O {[%clk 0:02:47]} 9. d3 {[%clk 0:03:00]}  Nb8 {[%clk 0:02:45]} 10. e5 {[%clk 0:02:58]}  dxe5 {[%clk 0:02:38]} 11. Nxe5 {[%clk 0:02:59]}  Nfd7 {[%clk 0:02:38]} 12. Nc4 {[%clk 0:02:54]}  Nc6 {[%clk 0:02:37]} 13. Bf3 {[%clk 0:02:44]}  Nd4 {[%clk 0:02:27]} 14. Be3 {[%clk 0:02:44]}  Rb8 {[%clk 0:02:17]} 15. Na4 {[%clk 0:02:26]}  Qc7 {[%clk 0:02:06]} 16. c3 {[%clk 0:02:22]}  Nxf3+ {[%clk 0:01:54]} 17. Qxf3 {[%clk 0:02:23]}  Ne5 {[%clk 0:01:54]} 18. Qg3 {[%clk 0:02:09]}  Be6 {[%clk 0:01:42]} 19. Nxc5 {[%clk 0:02:08]}  Bxc4 {[%clk 0:01:39]} 20. dxc4 {[%clk 0:02:08]}  Rbc8 {[%clk 0:01:39]} 21. b3 {[%clk 0:02:04]}  Nd7 {[%clk 0:01:09]} 22. Qxc7 {[%clk 0:01:34]}  Rxc7 {[%clk 0:01:10]} 23. Na4 {[%clk 0:01:35]}  Nf6 {[%clk 0:01:02]} 24. h3 {[%clk 0:01:31]}  Ne4 {[%clk 0:00:59]} 25. Rac1 {[%clk 0:01:24]}  Rd7 {[%clk 0:00:58]} 26. Rfd1 {[%clk 0:01:14]}  Rfd8 {[%clk 0:00:57]} 27. Rxd7 {[%clk 0:01:12]}  Rxd7 {[%clk 0:00:58]} 28. f3 {[%clk 0:01:08]}  Rd3 {[%clk 0:00:46]} 29. Nc5 {[%clk 0:00:47]}  Nxc5 {[%clk 0:00:37]} 30. Bxc5 {[%clk 0:00:48]}  Bxc3 {[%clk 0:00:34]} 31. Bxe7 {[%clk 0:00:48]}  Bd4+ {[%clk 0:00:25]} 32. Kh1 {[%clk 0:00:47]}  Rxb3 {[%clk 0:00:25]} 33. Rd1 {[%clk 0:00:47]}  Be5 {[%clk 0:00:19]} 34. Kg1 {[%clk 0:00:33]}  Kg7 {[%clk 0:00:19]} 35. Kf2 {[%clk 0:00:32]}  h5 {[%clk 0:00:17]} 36. Rd5 {[%clk 0:00:29]}  Rb2+ {[%clk 0:00:16]} 37. Kf1 {[%clk 0:00:29]}  Bf6 {[%clk 0:00:16]} 38. Bc5 {[%clk 0:00:25]}  Rc2 {[%clk 0:00:15]} 39. Rd7 {[%clk 0:00:23]}  Rxc4 {[%clk 0:00:15]} 40. Bb6 {[%clk 0:00:24]}  Ra4 {[%clk 0:00:13]} 41. Rxb7 {[%clk 0:00:24]}  Bc3 {[%clk 0:00:13]} 42. Ra7 {[%clk 0:00:23]}  Bxa5 {[%clk 0:00:13]} 43. Rxa6 {[%clk 0:00:23]}  Ra1+ {[%clk 0:00:13]} 44. Ke2 {[%clk 0:00:23]}  Bc3 {[%clk 0:00:14]} 45. Rxa1 {[%clk 0:00:22]}  Bxa1 {[%clk 0:00:15]} 46. Kd3 {[%clk 0:00:23]}  Bf6 {[%clk 0:00:15]} 47. Ke4 {[%clk 0:00:23]}  Bb2 {[%clk 0:00:14]} 48. f4 {[%clk 0:00:22]}  Ba1 {[%clk 0:00:14]} 49. g4 {[%clk 0:00:21]}  hxg4 {[%clk 0:00:12]} 50. hxg4 {[%clk 0:00:22]}  Bb2 {[%clk 0:00:13]} 51. Kd5 {[%clk 0:00:20]}  Ba1 {[%clk 0:00:12]} 52. g5 {[%clk 0:00:19]}  Bb2 {[%clk 0:00:12]} 53. Bd4+ {[%clk 0:00:18]}  Bxd4 {[%clk 0:00:11]} 54. Kxd4 {[%clk 0:00:19]}  Kf8 {[%clk 0:00:11]} 55. Kd5 {[%clk 0:00:18]}  Ke7 {[%clk 0:00:11]} 56. Ke5 {[%clk 0:00:19]}  Ke8 {[%clk 0:00:12]} 57. Kf6 {[%clk 0:00:16]}  Kf8 {[%clk 0:00:12]} 58. Ke5 {[%clk 0:00:17]}  Ke7 {[%clk 0:00:12]} 59. Kd5 {[%clk 0:00:17]}  Kd7 {[%clk 0:00:12]} 60. Ke5 {[%clk 0:00:18]}  Ke7 {[%clk 0:00:13]} 61. f5 {[%clk 0:00:17]}  gxf5 {[%clk 0:00:12]} 62. Kxf5 {[%clk 0:00:18]}  Kf8 {[%clk 0:00:12]} 63. g6 {[%clk 0:00:18]}  fxg6+ {[%clk 0:00:12]} 64. Kxg6 {[%clk 0:00:19]} 1/2-1/2


[Site "https://www.chess.com"]

[Event "Titled Tuesday Blitz June 13 Late 2023"]
[White "Herrera Reyes, Jose Antonio"]
[Black "Abduzhaparov"]
[WhiteFideId "2274914"]
[WhiteElo "2272"]
[BlackElo "2409"]
[Result "1-0"]
[Round "2"]
[TimeControl "180+2"]
[Date "2023.06.13"]
[WhiteClock "0:01:28"]
[BlackClock "0:00:18"]
[Board "117"]

1. Nf3 {[%clk 0:03:00]}  d6 {[%clk 0:03:00]} 2. g3 {[%clk 0:03:00]}  Nf6 {[%clk 0:03:01]} 3. Bg2 {[%clk 0:03:01]}  e5 {[%clk 0:03:02]} 4. d3 {[%clk 0:03:01]}  h5 {[%clk 0:03:02]} 5. h4 {[%clk 0:03:01]}  c6 {[%clk 0:03:00]} 6. O-O {[%clk 0:03:02]}  Be7 {[%clk 0:03:00]} 7. c3 {[%clk 0:03:02]}  Bg4 {[%clk 0:03:00]} 8. Nbd2 {[%clk 0:03:02]}  Nbd7 {[%clk 0:02:59]} 9. Nh2 {[%clk 0:03:03]}  Nc5 {[%clk 0:02:57]} 10. b4 {[%clk 0:03:02]}  Ne6 {[%clk 0:02:56]} 11. a4 {[%clk 0:03:01]}  Qc7 {[%clk 0:02:54]} 12. b5 {[%clk 0:03:01]}  d5 {[%clk 0:02:52]} 13. bxc6 {[%clk 0:03:00]}  bxc6 {[%clk 0:02:53]} 14. c4 {[%clk 0:03:01]}  Rd8 {[%clk 0:02:49]} 15. cxd5 {[%clk 0:03:01]}  cxd5 {[%clk 0:02:49]} 16. Bb2 {[%clk 0:03:00]}  O-O {[%clk 0:02:38]} 17. Ndf3 {[%clk 0:03:00]}  e4 {[%clk 0:02:35]} 18. Ng5 {[%clk 0:02:56]}  exd3 {[%clk 0:02:26]} 19. Qxd3 {[%clk 0:02:54]}  Nc5 {[%clk 0:02:19]} 20. Qc2 {[%clk 0:02:51]}  Ne6 {[%clk 0:02:12]} 21. Qxc7 {[%clk 0:02:43]}  Nxc7 {[%clk 0:02:13]} 22. Nxg4 {[%clk 0:02:39]}  Nxg4 {[%clk 0:02:01]} 23. Rfc1 {[%clk 0:02:39]}  Ne6 {[%clk 0:01:58]} 24. Nf3 {[%clk 0:02:35]}  Bc5 {[%clk 0:01:51]} 25. e3 {[%clk 0:02:34]}  Nxe3 {[%clk 0:01:50]} 26. fxe3 {[%clk 0:02:33]}  Bxe3+ {[%clk 0:01:51]} 27. Kh2 {[%clk 0:02:32]}  Bxc1 {[%clk 0:01:52]} 28. Rxc1 {[%clk 0:02:32]}  Rc8 {[%clk 0:01:52]} 29. Rd1 {[%clk 0:02:32]}  Rc2 {[%clk 0:01:46]} 30. Ba3 {[%clk 0:02:33]}  Rd8 {[%clk 0:01:44]} 31. Kh3 {[%clk 0:02:30]}  d4 {[%clk 0:01:39]} 32. Bb4 {[%clk 0:01:56]}  Rc4 {[%clk 0:01:35]} 33. Ba5 {[%clk 0:01:52]}  Rd5 {[%clk 0:01:31]} 34. Nd2 {[%clk 0:01:50]}  Rxa5 {[%clk 0:01:06]} 35. Nxc4 {[%clk 0:01:50]}  Rxa4 {[%clk 0:01:07]} 36. Ne5 {[%clk 0:01:50]}  Ra3 {[%clk 0:01:01]} 37. Kh2 {[%clk 0:01:48]}  Ra2 {[%clk 0:01:00]} 38. Kg1 {[%clk 0:01:48]}  a5 {[%clk 0:00:59]} 39. Bd5 {[%clk 0:01:48]}  Ra3 {[%clk 0:00:56]} 40. Kg2 {[%clk 0:01:47]}  Re3 {[%clk 0:00:55]} 41. Nc6 {[%clk 0:01:41]}  a4 {[%clk 0:00:48]} 42. Nxd4 {[%clk 0:01:40]}  Nxd4 {[%clk 0:00:45]} 43. Rxd4 {[%clk 0:01:41]}  a3 {[%clk 0:00:45]} 44. Ra4 {[%clk 0:01:41]}  g6 {[%clk 0:00:39]} 45. Ra7 {[%clk 0:01:40]}  Rd3 {[%clk 0:00:36]} 46. Bxf7+ {[%clk 0:01:40]}  Kf8 {[%clk 0:00:33]} 47. Bxg6 {[%clk 0:01:40]}  Rd2+ {[%clk 0:00:33]} 48. Kf3 {[%clk 0:01:39]}  a2 {[%clk 0:00:33]} 49. Bxh5 {[%clk 0:01:38]}  Rb2 {[%clk 0:00:23]} 50. Bg6 {[%clk 0:01:35]}  Rb6 {[%clk 0:00:20]} 51. Be4 {[%clk 0:01:34]}  Rb3+ {[%clk 0:00:19]} 52. Kf4 {[%clk 0:01:34]}  Rb2 {[%clk 0:00:19]} 53. h5 {[%clk 0:01:34]}  Rf2+ {[%clk 0:00:19]} 54. Bf3 {[%clk 0:01:32]}  Rb2 {[%clk 0:00:19]} 55. h6 {[%clk 0:01:32]}  Rb4+ {[%clk 0:00:19]} 56. Be4 {[%clk 0:01:32]}  Rb6 {[%clk 0:00:17]} 57. h7 {[%clk 0:01:31]}  Rh6 {[%clk 0:00:16]} 58. Rxa2 {[%clk 0:01:30]}  Kg7 {[%clk 0:00:17]} 59. Ra7+ {[%clk 0:01:30]}  Kh8 {[%clk 0:00:17]} 60. Ra8+ {[%clk 0:01:29]}  Kg7 {[%clk 0:00:17]} 61. Rg8+ {[%clk 0:01:29]}  Kf7 {[%clk 0:00:18]} 62. h8=Q {[%clk 0:01:28]}  Rxh8 {[%clk 0:00:19]} 63. Rxh8 {[%clk 0:01:28]}  Kg7 {[%clk 0:00:20]} 64. Rh7+ {[%clk 0:01:28]}  Kg8 {[%clk 0:00:18]} 65. Ra7 {[%clk 0:01:28]} 1-0


[Site "https://www.chess.com"]

[Event "Titled Tuesday Blitz June 13 Late 2023"]
[White "Sivakumar, Shaaketh"]
[Black "Mahdavi, Reza"]
[WhiteFideId "30940176"]
[BlackFideId "12595926"]
[WhiteElo "2174"]
[BlackElo "2395"]
[Result "0-1"]
[Round "2"]
[TimeControl "180+2"]
[Date "2023.06.13"]
[WhiteClock "0:00:38"]
[BlackClock "0:00:22"]
[Board "118"]

1. e4 {[%clk 0:03:00]}  c5 {[%clk 0:02:29]} 2. Nf3 {[%clk 0:03:01]}  d6 {[%clk 0:02:30]} 3. d4 {[%clk 0:03:00]}  cxd4 {[%clk 0:02:29]} 4. Qxd4 {[%clk 0:03:01]}  Nf6 {[%clk 0:02:30]} 5. Bb5+ {[%clk 0:03:02]}  Bd7 {[%clk 0:02:27]} 6. c4 {[%clk 0:03:03]}  Qc7 {[%clk 0:02:27]} 7. Nc3 {[%clk 0:03:02]}  a6 {[%clk 0:02:28]} 8. Bxd7+ {[%clk 0:03:01]}  Nbxd7 {[%clk 0:02:29]} 9. Be3 {[%clk 0:03:00]}  e6 {[%clk 0:02:29]} 10. O-O {[%clk 0:02:59]}  Rc8 {[%clk 0:02:30]} 11. Rac1 {[%clk 0:02:55]}  Be7 {[%clk 0:02:29]} 12. b3 {[%clk 0:02:53]}  O-O {[%clk 0:02:29]} 13. Rfd1 {[%clk 0:02:53]}  Rfe8 {[%clk 0:02:30]} 14. h3 {[%clk 0:02:51]}  Qa5 {[%clk 0:02:29]} 15. Qd2 {[%clk 0:02:50]}  Qh5 {[%clk 0:02:28]} 16. Nd4 {[%clk 0:02:49]}  Qg6 {[%clk 0:02:25]} 17. f3 {[%clk 0:02:48]}  h5 {[%clk 0:02:24]} 18. Qf2 {[%clk 0:02:48]}  Red8 {[%clk 0:02:19]} 19. Nce2 {[%clk 0:02:48]}  Nc5 {[%clk 0:02:10]} 20. Nf4 {[%clk 0:02:46]}  Qh7 {[%clk 0:02:07]} 21. b4 {[%clk 0:02:45]}  Ncd7 {[%clk 0:02:02]} 22. h4 {[%clk 0:02:42]}  e5 {[%clk 0:01:59]} 23. Nf5 {[%clk 0:02:42]}  exf4 {[%clk 0:01:59]} 24. Nxe7+ {[%clk 0:02:39]}  Kf8 {[%clk 0:01:59]} 25. Nxc8 {[%clk 0:02:25]}  fxe3 {[%clk 0:01:59]} 26. Qxe3 {[%clk 0:02:24]}  Rxc8 {[%clk 0:02:00]} 27. Rxd6 {[%clk 0:02:24]}  Re8 {[%clk 0:01:54]} 28. c5 {[%clk 0:02:16]}  Kg8 {[%clk 0:01:48]} 29. Rcd1 {[%clk 0:02:13]}  Nf8 {[%clk 0:01:48]} 30. Qg5 {[%clk 0:02:10]}  Kh8 {[%clk 0:01:45]} 31. a4 {[%clk 0:02:09]}  Ne6 {[%clk 0:01:42]} 32. Qe3 {[%clk 0:02:04]}  Qg6 {[%clk 0:01:39]} 33. b5 {[%clk 0:01:59]}  axb5 {[%clk 0:01:39]} 34. axb5 {[%clk 0:02:00]}  Qg3 {[%clk 0:01:39]} 35. c6 {[%clk 0:01:44]}  bxc6 {[%clk 0:01:35]} 36. bxc6 {[%clk 0:01:45]}  Ng4 {[%clk 0:01:36]} 37. Qa7 {[%clk 0:01:30]}  Qh2+ {[%clk 0:01:34]} 38. Kf1 {[%clk 0:01:31]}  Qh1+ {[%clk 0:01:11]} 39. Qg1 {[%clk 0:01:31]}  Ne3+ {[%clk 0:01:10]} 40. Ke2 {[%clk 0:01:31]}  Qxg2+ {[%clk 0:00:47]} 41. Qxg2 {[%clk 0:01:29]}  Nxg2 {[%clk 0:00:48]} 42. Rd7 {[%clk 0:01:25]}  Ngf4+ {[%clk 0:00:47]} 43. Ke3 {[%clk 0:01:25]}  Kg8 {[%clk 0:00:43]} 44. Rc1 {[%clk 0:01:23]}  Rc8 {[%clk 0:00:30]} 45. Rb7 {[%clk 0:01:20]}  Kf8 {[%clk 0:00:22]} 46. e5 {[%clk 0:01:18]}  Nd5+ {[%clk 0:00:16]} 47. Ke4 {[%clk 0:01:18]}  Ndc7 {[%clk 0:00:17]} 48. f4 {[%clk 0:01:14]}  g6 {[%clk 0:00:16]} 49. f5 {[%clk 0:01:14]}  gxf5+ {[%clk 0:00:17]} 50. Kxf5 {[%clk 0:01:14]}  Ke7 {[%clk 0:00:18]} 51. Rd1 {[%clk 0:01:13]}  Nc5 {[%clk 0:00:16]} 52. Ra7 {[%clk 0:01:12]}  Ke8 {[%clk 0:00:15]} 53. Kf6 {[%clk 0:01:10]}  Ne4+ {[%clk 0:00:15]} 54. Kf5 {[%clk 0:01:09]}  Nc5 {[%clk 0:00:15]} 55. Rg1 {[%clk 0:01:08]}  Kf8 {[%clk 0:00:13]} 56. Rg5 {[%clk 0:01:06]}  N7e6 {[%clk 0:00:13]} 57. Rxh5 {[%clk 0:01:04]}  Ng7+ {[%clk 0:00:13]} 58. Kg5 {[%clk 0:00:56]}  Nce6+ {[%clk 0:00:14]} 59. Kh6 {[%clk 0:00:54]}  Nxh5 {[%clk 0:00:15]} 60. Kxh5 {[%clk 0:00:52]}  Rxc6 {[%clk 0:00:15]} 61. Kg4 {[%clk 0:00:50]}  Kg7 {[%clk 0:00:14]} 62. h5 {[%clk 0:00:50]}  Rc4+ {[%clk 0:00:14]} 63. Kg3 {[%clk 0:00:49]}  Re4 {[%clk 0:00:13]} 64. Ra5 {[%clk 0:00:47]}  Re3+ {[%clk 0:00:13]} 65. Kg4 {[%clk 0:00:46]}  Re4+ {[%clk 0:00:14]} 66. Kf3 {[%clk 0:00:45]}  Rf4+ {[%clk 0:00:14]} 67. Kg3 {[%clk 0:00:46]}  Rf5 {[%clk 0:00:15]} 68. Kg4 {[%clk 0:00:46]}  Rg5+ {[%clk 0:00:16]} 69. Kh4 {[%clk 0:00:46]}  Kh6 {[%clk 0:00:17]} 70. Ra7 {[%clk 0:00:45]}  Rxh5+ {[%clk 0:00:17]} 71. Kg4 {[%clk 0:00:46]}  Rg5+ {[%clk 0:00:18]} 72. Kh4 {[%clk 0:00:46]}  Kg6 {[%clk 0:00:18]} 73. Ra5 {[%clk 0:00:42]}  Rg1 {[%clk 0:00:18]} 74. Ra4 {[%clk 0:00:39]}  Kf5 {[%clk 0:00:17]} 75. Ra7 {[%clk 0:00:39]}  Rg7 {[%clk 0:00:17]} 76. Ra5 {[%clk 0:00:39]}  Ng5 {[%clk 0:00:15]} 77. e6+ {[%clk 0:00:36]}  Kxe6 {[%clk 0:00:16]} 78. Rxg5 {[%clk 0:00:37]}  Rxg5 {[%clk 0:00:17]} 79. Kxg5 {[%clk 0:00:37]}  Ke5 {[%clk 0:00:17]} 80. Kg4 {[%clk 0:00:38]}  Ke4 {[%clk 0:00:18]} 81. Kg5 {[%clk 0:00:38]}  f5 {[%clk 0:00:18]} 82. Kh4 {[%clk 0:00:38]}  f4 {[%clk 0:00:19]} 83. Kh3 {[%clk 0:00:39]}  f3 {[%clk 0:00:19]} 84. Kh2 {[%clk 0:00:38]}  Ke3 {[%clk 0:00:19]} 85. Kg3 {[%clk 0:00:38]}  Ke2 {[%clk 0:00:20]} 86. Kh2 {[%clk 0:00:39]}  f2 {[%clk 0:00:21]} 87. Kg3 {[%clk 0:00:38]}  f1=Q {[%clk 0:00:22]} 0-1


[Site "https://www.chess.com"]

[Event "Titled Tuesday Blitz June 13 Late 2023"]
[White "Bordi, Kevin"]
[Black "Smiechu"]
[WhiteFideId "621862"]
[WhiteElo "2727"]
[BlackElo "2404"]
[Result "1-0"]
[Round "2"]
[TimeControl "180+2"]
[Date "2023.06.13"]
[WhiteClock "0:00:57"]
[BlackClock "0:00:00"]
[Board "120"]

1. e4 {[%clk 0:03:00]}  c5 {[%clk 0:02:59]} 2. Nf3 {[%clk 0:03:01]}  g6 {[%clk 0:02:59]} 3. d4 {[%clk 0:03:02]}  cxd4 {[%clk 0:02:59]} 4. Qxd4 {[%clk 0:03:02]}  Nf6 {[%clk 0:02:58]} 5. e5 {[%clk 0:03:03]}  Nc6 {[%clk 0:02:58]} 6. Qa4 {[%clk 0:03:00]}  Nd5 {[%clk 0:02:58]} 7. Qe4 {[%clk 0:03:00]}  Nb6 {[%clk 0:02:58]} 8. Nc3 {[%clk 0:03:00]}  d5 {[%clk 0:02:58]} 9. exd6 {[%clk 0:03:00]}  Bf5 {[%clk 0:02:58]} 10. Qh4 {[%clk 0:02:58]}  Bg7 {[%clk 0:02:53]} 11. dxe7 {[%clk 0:02:55]}  Nxe7 {[%clk 0:02:43]} 12. Bh6 {[%clk 0:02:52]}  Bxc3+ {[%clk 0:02:18]} 13. bxc3 {[%clk 0:02:51]}  Qc7 {[%clk 0:02:17]} 14. Bb5+ {[%clk 0:02:44]}  Bd7 {[%clk 0:02:11]} 15. Bxd7+ {[%clk 0:02:44]}  Qxd7 {[%clk 0:02:11]} 16. O-O {[%clk 0:02:40]}  O-O-O {[%clk 0:02:11]} 17. Bg5 {[%clk 0:02:32]}  Nf5 {[%clk 0:02:09]} 18. Qb4 {[%clk 0:02:30]}  Rde8 {[%clk 0:02:04]} 19. a4 {[%clk 0:02:30]}  Qd6 {[%clk 0:01:57]} 20. Qb5 {[%clk 0:02:27]}  Qc6 {[%clk 0:01:49]} 21. h3 {[%clk 0:02:19]}  h6 {[%clk 0:01:21]} 22. Bf4 {[%clk 0:02:14]}  Nd5 {[%clk 0:01:21]} 23. Be5 {[%clk 0:02:13]}  f6 {[%clk 0:01:17]} 24. Bd4 {[%clk 0:02:12]}  Nxd4 {[%clk 0:01:09]} 25. cxd4 {[%clk 0:02:08]}  Nc3 {[%clk 0:00:57]} 26. Qxc6+ {[%clk 0:02:05]}  bxc6 {[%clk 0:00:57]} 27. Ra3 {[%clk 0:02:05]}  Nd5 {[%clk 0:00:45]} 28. c4 {[%clk 0:02:04]}  Nf4 {[%clk 0:00:45]} 29. Rb3 {[%clk 0:01:58]}  Kc7 {[%clk 0:00:39]} 30. Rfb1 {[%clk 0:01:48]}  Rb8 {[%clk 0:00:39]} 31. Kf1 {[%clk 0:01:40]}  Rxb3 {[%clk 0:00:29]} 32. Rxb3 {[%clk 0:01:41]}  Rb8 {[%clk 0:00:29]} 33. Rxb8 {[%clk 0:01:40]}  Kxb8 {[%clk 0:00:30]} 34. g3 {[%clk 0:01:34]}  Nxh3 {[%clk 0:00:20]} 35. Nh4 {[%clk 0:01:34]}  Ng5 {[%clk 0:00:17]} 36. Nxg6 {[%clk 0:01:33]}  Nf3 {[%clk 0:00:16]} 37. d5 {[%clk 0:01:30]}  Nd2+ {[%clk 0:00:16]} 38. Ke2 {[%clk 0:01:29]}  Nxc4 {[%clk 0:00:16]} 39. dxc6 {[%clk 0:01:28]}  Kc7 {[%clk 0:00:17]} 40. Ne7 {[%clk 0:01:27]}  Nb6 {[%clk 0:00:16]} 41. a5 {[%clk 0:01:14]}  Nc4 {[%clk 0:00:14]} 42. a6 {[%clk 0:01:07]}  Ne5 {[%clk 0:00:14]} 43. f4 {[%clk 0:00:57]}  Nxc6 {[%clk 0:00:14]} 44. Nd5+ {[%clk 0:00:58]}  Kd6 {[%clk 0:00:12]} 45. Nxf6 {[%clk 0:00:59]}  Nb4 {[%clk 0:00:08]} 46. Ng4 {[%clk 0:00:58]}  Nxa6 {[%clk 0:00:08]} 47. Nxh6 {[%clk 0:00:59]}  Nc5 {[%clk 0:00:09]} 48. Nf5+ {[%clk 0:00:58]}  Kd5 {[%clk 0:00:06]} 49. Kf3 {[%clk 0:00:58]}  a5 {[%clk 0:00:05]} 50. Ne3+ {[%clk 0:00:59]}  Kd4 {[%clk 0:00:04]} 51. g4 {[%clk 0:00:57]}  a4 {[%clk 0:00:00]} 52. g5 {[%clk 0:00:57]} 1-0


[Site "https://www.chess.com"]